[Event "SVK ECo-C Extraliga 2021-22"]
[Site "Slovakia"]
[Date "2022.05.08"]
[Round "7.4"]
[White "Murajda, Tomas"]
[Black "Kapusta, Petr"]
[Result "0-1"]
[ECO "A45"]
[WhiteElo "1916"]
[BlackElo "2107"]
[Annotator "TA"]
[PlyCount "57"]
[EventDate "2021.10.21"]
[EventType "team-tourn"]
[EventCountry "SVK"]
[SourceTitle "playchess.com"]
[Source "ChessBase"]
[SourceQuality "1"]
[TimeControl "40/5400+30:1800+30"]

{[%evp 9,57,0,0,0,0,-3,15,0,-6,-29,-42,-115,-108,-112,-111,-129,-103,-116,-109,-105,-112,-122,-112,-119,-113,-275,-278,-669,-667,-992,-983,-1285,-723,-1963,-928,-2891,-1830,-29986,-29987,-29991,-29992,-29992,-1129,-1110,-402,-1056,-1107,-1082,-1089,-1202]} 1. d4 {[%emt 0:30:13]} Nf6 {[%emt 0:30:04]} 2. Bf4 {[%emt 0:01:16]} c5 {[%emt 0:00:54]} 3. e3 {[%emt 0:01:11]} cxd4 {[%emt 0:00:27]} 4. exd4 {[%emt 0:02:01]} Qb6 {[%emt 0:00:30]} 5. b3 {[%emt 0:04:01]} Nc6 {[%emt 0:00:53]} 6. Nf3 {[%emt 0:00:33] A45: Trompowsky Attack.} g6 {[%emt 0:01:59]} 7. c3 {[%emt 0:01:20]} Bg7 {[%emt 0:00:29]} 8. Bd3 {[%emt 0:00:32] [#] The position is equal.} O-O $146 {[%emt 0:00:45]} ({Predecessor:} 8... Nd5 9. Be3 O-O 10. Bc4 Nxe3 11. fxe3 Qc7 12. O-O d6 13. Ng5 e6 14. d5 Ne5 15. dxe6 Nxc4 16. exf7+ {½-½ (46) Lohkamp,R (1476)-Meyer,W (1658) Hamburg 2018}) 9. Qc1 {[%emt 0:00:29]} d6 {[%emt 0:00:39][%cal Bd7d6,Bd6e5,Be5e4][%mdl 32]} 10. Bh6 {[%emt 0:00:46]} (10. O-O $15) 10... e5 $17 {[%emt 0:00:45] White must now prevent ...e4.} 11. Bxg7 {[%emt 0:00:15]} Kxg7 {[%emt 0:00:09]} 12. dxe5 {[%emt 0:01:29]} dxe5 {[%emt 0:00:19]} ({Weaker is} 12... Nxe5 13. Nxe5 dxe5 14. O-O $15) 13. Nfd2 {[%emt 0:02:21] Inhibits e4.} e4 {[%emt 0:03:59] Black is more active.} 14. Nc4 {[%emt 0:00:17]} Qc7 $36 {[%emt 0:08:46][%mdl 2048] Black is on the roll.} (14... Qc5 {seems wilder.} 15. Be2 Bg4 16. Bxg4 Nxg4 17. O-O Rad8) 15. Be2 {[%emt 0:00:23]} Bg4 {[%emt 0:02:02]} 16. Bxg4 {[%emt 0:01:13]} Nxg4 {[%emt 0:00:45]} 17. Qg5 {[%emt 0:03:07] Inhibits e3.} (17. h3 $17 Nge5 18. Nxe5 Nxe5 19. O-O) 17... f5 $19 {[%emt 0:01:28] Hoping for ...e3.} 18. Ne3 $2 {[%emt 0:06:37]} (18. Qh4) 18... Nce5 {[%emt 0:02:28]} 19. Ke2 {[%emt 0:01:58]} Rad8 {[%emt 0:03:12][%cal Of5f4] Against Nd5. ...f4! is the strong threat.} 20. Nxg4 {[%emt 0:04:39]} Nxg4 {[%emt 0:01:01]} 21. Qc1 {[%emt 0:02:54]} Qc5 {[%emt 0:01:06]} (21... f4 $142 22. Nd2 Qd6) 22. Qe1 {[%emt 0:01:24]} Qd6 {[%emt 0:05:12][%csl Gd8,Ge4][%cal Rd6d3]} 23. Kf1 {[%emt 0:00:31]} e3 {[%emt 0:01:36]} 24. f3 {[%emt 0:06:01]} e2+ {[%emt 0:01:12]} 25. Qxe2 {[%emt 0:00:55]} Qd1+ {[%emt 0:00:07]} (25... Rfe8 $142 26. Qd2 {[#]} Qe5 $1 27. fxg4 fxg4 28. h4 Rf8+ 29. Kg1 g3 30. Rh3 Qe3+ $3 {[%mdl 512]} 31. Qxe3 Rd1+ 32. Qe1 Rxe1#) 26. Qxd1 {[%emt 0:00:46]} Rxd1+ {[%emt 0:00:08]} 27. Ke2 {[%emt 0:00:08]} Rxh1 {[%emt 0:00:07]} 28. fxg4 {[%emt 0:00:10]} fxg4 {[%emt 0:00:10]} 29. c4 {White got outplayed after the opening.  Weighted Error Value: White=1.16/Black=0.71} 0-1

[Event "SVK ECo-C Extraliga 2021-22"]
[Site "Slovakia"]
[Date "2022.05.08"]
[Round "7.5"]
[White "Pacher, Milan"]
[Black "Szucs, Vladimir"]
[Result "1-0"]
[ECO "C02"]
[WhiteElo "2394"]
[BlackElo "2082"]
[Annotator "TA"]
[PlyCount "61"]
[EventDate "2021.10.21"]
[EventType "team-tourn"]
[EventCountry "SVK"]
[SourceTitle "playchess.com"]
[Source "ChessBase"]
[SourceQuality "1"]
[TimeControl "40/5400+30:1800+30"]

{[%evp 22,61,-61,-71,-76,-119,-119,-152,-95,-129,-90,-124,-122,-137,-127,-136,-131,-134,-120,-135,-120,-164,-160,-183,-114,-114,-116,-110,0,-89,88,83,235,235,487,476,927,912,929,925,914,875]} 1. e4 {[%emt 0:00:03]} e6 {[%emt 0:00:29]} 2. d4 {[%emt 0:00:05]} d5 {[%emt 0:00:08]} 3. e5 {[%emt 0:00:06]} c5 {[%emt 0:00:12]} 4. c3 {[%emt 0:00:03]} Nc6 {[%emt 0:00:47]} 5. Nf3 {[%emt 0:00:04]} Bd7 {[%emt 0:00:05]} 6. Bd3 {[%emt 0:00:46]} cxd4 {[%emt 0:00:34]} 7. cxd4 {[%emt 0:00:04]} Qb6 {[%emt 0:02:00]} 8. Nc3 {[%emt 0:01:01]} Nxd4 {[%emt 0:00:20]} 9. Nxd4 {[%emt 0:00:06]} Qxd4 {[%emt 0:00:05]} 10. O-O {[%emt 0:00:11]} a6 {[%emt 0:00:13]} 11. Re1 {[%emt 0:02:14]} Ne7 {[%emt 0:06:12]} 12. Be3 {[%emt 0:00:34]} Qxe5 {[%emt 0:02:41] C02: French: Advance Variation.} 13. Qb3 {[%emt 0:06:21]} Bc6 $1 {[%emt 0:05:07] [#]} 14. Bc5 $146 {[%emt 0:19:25] [#]} ({Predecessor:} 14. Rad1 Ng6 15. Bd4 Qd6 16. Bf1 Be7 17. Bxg7 Rg8 18. Bh6 O-O-O 19. Rc1 Nh4 20. Ne2 {0-1 (51) Yeletsky,I (2418)-Gorbatov,A (2400) Moscow 2018}) 14... Qc7 {[%emt 0:04:43]} (14... Qg5 $142 $1 {[%cal Od5d4] ...d4! is the strong threat.} 15. g3 Ng6 16. Bxf8 Nxf8) 15. Rac1 $17 {[%emt 0:07:37][%cal Ba1c1,Bc1c3,Bc3g3,Bg3f3][%mdl 32]} Qd7 {[%emt 0:04:37]} 16. Qa3 {[%emt 0:03:03]} Ng6 {[%emt 0:09:05]} 17. Bxf8 {[%emt 0:02:38]} Nxf8 {[%emt 0:02:19]} ({Inferior is} 17... Rxf8 18. Ne2 $15) 18. Ne2 {[%emt 0:00:45]} Ng6 {[%emt 0:07:07]} 19. Nd4 {[%emt 0:01:15]} Ne7 {[%emt 0:03:53] Inhibits Nf5.} 20. Rc3 {[%emt 0:07:43]} Rd8 {[%emt 0:07:27]} 21. Bb1 {[%emt 0:02:26]} Qd6 {[%emt 0:03:40]} 22. Qb3 {[%emt 0:00:03]} Rd7 {[%emt 0:01:53]} ({Black should try} 22... e5 $19 23. Nxc6 bxc6) 23. Rg3 {[%emt 0:01:37]} g6 {[%emt 0:02:23] aiming for ...e5.} 24. Qe3 {[%emt 0:03:42] Against e5} h5 {[%emt 0:06:04]} (24... Bb5 $17 {Threatens to win with ...Nc6.} 25. b3 Rd8) 25. h4 {[%emt 0:03:35]} (25. Qg5 $1 $11) 25... Kf8 $2 {[%emt 0:05:08] [#]} (25... Kd8 $17 26. Qg5 Kc8) 26. Qg5 $1 $16 {[%emt 0:04:37] White is much more active. The black rooks are badly placed.} Rg8 $2 {[%emt 0:10:10] Black cannot hold the game after this.} (26... Ke8 $16) 27. Rf3 $18 {[%emt 0:02:40]} Ke8 $2 {[%emt 0:03:46]} (27... Qb4 28. Qe5 (28. Nxe6+ Ke8 $11) 28... Ke8) 28. Qf6 {[%emt 0:01:11] White is clearly winning.} Rf8 {[%emt 0:02:19] [#]} (28... Nf5 $142 29. Bxf5 gxf5 30. Nxe6 Re7) 29. Rxe6 $1 {[%emt 0:01:56][%mdl 512]} Qxe6 {[%emt 0:00:46]} 30. Nxe6 {[%emt 0:00:07][%mdl 64] Threatening mate with Qg7. Pin} Rd6 {[%emt 0:00:24] [#]} 31. Qe5 $1 {[%emt 0:02:13] Weighted Error Value: White=0.18 (very precise) /Black=0.71} 1-0

[Event "SVK ECo-C Extraliga 2021-22"]
[Site "Slovakia"]
[Date "2022.05.07"]
[Round "7.5"]
[White "Jablonicky, Martin"]
[Black "Halak, Miklos"]
[Result "0-1"]
[ECO "B06"]
[WhiteElo "2377"]
[BlackElo "2251"]
[Annotator "TA"]
[PlyCount "74"]
[EventDate "2021.10.21"]
[EventType "team-tourn"]
[EventCountry "SVK"]
[SourceTitle "playchess.com"]
[Source "ChessBase"]
[SourceQuality "1"]
[TimeControl "40/5400+30:1800+30"]

{[%evp 12,74,49,38,45,56,84,75,68,70,93,93,98,97,95,64,120,87,113,103,101,101,102,106,110,106,131,107,148,110,130,164,166,95,84,15,2,13,2,0,0,0,0,0,-23,-37,0,-99,-97,-89,-104,-100,-102,-112,-100,-94,-87,-5425,-5418,-751,-706,-713,-685,-687,-656]} 1. e4 {[%emt 0:00:02]} g6 {[%emt 0:00:24]} 2. d4 {[%emt 0:00:06]} Bg7 {[%emt 0:00:05]} 3. Nc3 {[%emt 0:00:28]} d6 {[%emt 0:00:34]} 4. Be3 {[%emt 0:01:49]} a6 {[%emt 0:02:01]} 5. f4 {[%emt 0:00:06]} b5 {[%emt 0:02:39]} 6. Bd3 {[%emt 0:00:07]} Bb7 {[%emt 0:00:40]} 7. Nf3 {[%emt 0:00:05]} Nf6 {[%emt 0:00:30] B06: Modern Defence.} 8. e5 {[%emt 0:00:49]} Nfd7 {[%emt 0:03:32] [#]} 9. Be4 $146 {[%emt 0:00:34]} ({Predecessor:} 9. h4 c5 10. h5 cxd4 11. Bxd4 dxe5 12. fxe5 Nc6 13. Be4 O-O 14. hxg6 fxg6 15. Ng5 Nxd4 16. Qxd4 Bxe4 17. Qxe4 {½-½ (33) Terrieux,K (2439)-Di Nicolantonio,L (2414) Lille 2015}) 9... Bxe4 {[%emt 0:00:46] White is better.} 10. Nxe4 {[%emt 0:00:05][%cal Bc3e4,Be4f2,Bf2d3][%mdl 32]} d5 {[%emt 0:00:18]} 11. Nf2 {[%emt 0:00:44]} e6 {[%emt 0:04:14]} 12. Nd3 {[%emt 0:00:06]} Nc6 {[%emt 0:04:38]} 13. a4 {[%emt 0:07:56]} b4 {[%emt 0:10:44]} (13... bxa4 $14 14. c3 (14. Rxa4 O-O $14) 14... Nb6) 14. O-O {[%emt 0:01:33]} O-O {[%emt 0:08:11]} 15. a5 {[%emt 0:03:56]} Rb8 {[%emt 0:04:11]} 16. Nd2 {[%emt 0:00:14]} Rb5 {[%emt 0:07:29]} 17. Nb3 {[%emt 0:00:06]} Qb8 {[%emt 0:08:12]} 18. Qe1 {[%emt 0:01:36]} Rc8 {[%emt 0:05:30]} 19. Ra4 {[%emt 0:00:28]} Bf8 {[%emt 0:00:24]} 20. g4 {[%emt 0:01:06] f5 is the strong threat.} Nd8 {[%emt 0:06:31][%cal Oc7c5]} 21. f5 {[%emt 0:00:52] Strongly threatening Qh4.} c5 {[%emt 0:01:17]} 22. dxc5 {[%emt 0:10:48]} ({Better is} 22. Nbxc5 $18 Bxc5 23. dxc5 Nxe5 24. fxg6 (24. Rxb4 Nxd3 25. Rxb5 Qxb5 $11) 24... Nxg6 25. Rxb4 (25. Nxb4 Qb7 $16)) 22... Nxe5 $16 {[%emt 0:01:54] [#]} 23. Bf4 {[%emt 0:00:22]} (23. Qh4 $1 $16) 23... Nxd3 $11 {[%emt 0:00:25]} 24. cxd3 {[%emt 0:00:05]} Qa7 {[%emt 0:02:16]} 25. d4 {[%emt 0:00:11]} exf5 {[%emt 0:01:13]} 26. gxf5 {[%emt 0:00:13]} ({Don't play} 26. Rxb4 Rxb4 27. Qxb4 fxg4 $17) 26... Qd7 {[%emt 0:00:21]} 27. fxg6 {[%emt 0:02:43]} hxg6 {[%emt 0:02:32]} 28. Rxb4 {[%emt 0:24:18]} Qg4+ {[%emt 0:03:25]} 29. Kh1 {[%emt 0:04:03]} (29. Bg3 $1 $11 {was the only way to keep the balance.}) 29... Rxb4 $17 {[%emt 0:00:39]} 30. Qxb4 {[%emt 0:00:31]} Ne6 {[%emt 0:00:56]} 31. Qd2 {[%emt 0:01:22]} Qh3 {[%emt 0:06:20][%csl LRb3,LRf1][%cal Rh3f1]} 32. Qd1 {[%emt 0:00:58]} Nxf4 {[%emt 0:04:55]} 33. Rxf4 {[%emt 0:00:06] [#]} Re8 $1 $40 {[%emt 0:01:49][%mdl 128] Black attacks with force. Black is more active.} 34. Rf3 $2 {[%emt 0:02:33][%mdl 8192] [#]} (34. Na1 $17) 34... Re1+ $1 $19 {[%emt 0:00:14][%mdl 576] Deflection. Black is clearly winning.} 35. Qxe1 {[%emt 0:00:03]} Qxf3+ {[%emt 0:00:05]} 36. Kg1 {[%emt 0:00:03]} Qxb3 {[%emt 0:00:09]} 37. c6 {[%emt 0:00:42]} Bd6 {[%emt 0:02:09] Never resign too early!  Weighted Error Value: White=0.47/Black=0.10 (very precise)} 0-1

[Event "SVK ECo-C Extraliga 2021-22"]
[Site "Slovakia"]
[Date "2022.05.07"]
[Round "7.5"]
[White "Mikes, Jan"]
[Black "Krak, Tomas"]
[Result "1-0"]
[ECO "B23"]
[WhiteElo "2349"]
[BlackElo "2306"]
[Annotator "TA"]
[PlyCount "53"]
[EventDate "2021.10.21"]
[EventType "team-tourn"]
[EventCountry "SVK"]
[SourceTitle "playchess.com"]
[Source "ChessBase"]
[SourceQuality "1"]
[TimeControl "40/5400+30:1800+30"]

{[%evp 9,53,-15,0,0,0,0,0,0,13,0,-12,-31,31,0,45,35,40,72,76,50,116,76,83,66,139,118,113,101,105,23,38,20,22,18,133,138,141,143,173,170,520,520,517,496,814,806]} 1. e4 {[%emt 0:00:06]} c5 {[%emt 0:02:24]} 2. Nc3 {[%emt 0:00:33]} d6 {[%emt 0:00:59]} 3. d4 {[%emt 0:00:18]} cxd4 {[%emt 0:00:24]} 4. Qxd4 {[%emt 0:00:05]} a6 {[%emt 0:03:15]} 5. b3 {[%emt 0:00:25]} e5 {[%emt 0:00:54]} 6. Qd2 {[%emt 0:03:22] B23: Closed Sicilian: Lines without g3.} Nf6 {[%emt 0:00:35]} 7. Bb2 {[%emt 0:02:26]} Be7 {[%emt 0:00:31]} 8. O-O-O {[%emt 0:00:22] The position is equal.} O-O {[%emt 0:00:30]} 9. Kb1 {[%emt 0:00:08]} b5 {[%emt 0:06:08]} 10. f3 {[%emt 0:00:55]} Be6 {[%emt 0:03:22]} (10... b4 $15 11. Na4 (11. Nd5 Nxd5 12. Qxd5 Qb6 $15) 11... Nc6) 11. g4 {[%emt 0:07:53]} Nbd7 {[%emt 0:04:09] [#]} (11... b4 $5 {[%cal Rb4c3]} 12. Nd5 Bxd5 13. exd5 a5 $11) 12. Nge2 $146 {[%emt 0:06:04][%cal Bg1e2,Be2g3,Bg3e4][%mdl 32]} ({Predecessor:} 12. g5 Ne8 13. h4 Nb6 14. Bh3 b4 15. Nd5 Bxd5 16. exd5 Nc7 17. f4 Nbxd5 18. Ne2 {1-0 (35) Gabrielian,A (2499)-Teterev,V (2486) St Petersburg 2018}) 12... Nb6 {[%emt 0:05:58]} 13. Ng3 {[%emt 0:05:19]} b4 {[%emt 0:15:09]} 14. Nce2 {[%emt 0:00:05]} d5 {[%emt 0:00:06]} (14... a5 $14) 15. Bxe5 {[%emt 0:25:20] Strongly threatening g5.} dxe4 {[%emt 0:02:49]} 16. Qc1 {[%emt 0:01:10]} (16. fxe4 Qxd2 17. Rxd2 Nxg4 $11) 16... Nfd7 {[%emt 0:12:07]} ({Better is} 16... Nfd5 $14 17. Nxe4 (17. fxe4 Bg5 $17) 17... a5) 17. Nxe4 $16 {[%emt 0:17:51]} Nd5 {[%emt 0:02:41]} 18. Bd4 {[%emt 0:04:58] White is more active.} Qc7 {[%emt 0:04:45]} 19. c4 {[%emt 0:02:07]} ({White should try} 19. f4 $16 {aiming for f5.} f6 20. f5) 19... bxc3 $1 $11 {[%emt 0:06:59]} 20. N2xc3 {[%emt 0:00:05]} Nb4 $1 {[%emt 0:04:15]} 21. Ng5 $40 {[%emt 0:02:35][%mdl 128] White attacks.} Rab8 {[%emt 0:11:34]} (21... Bxg5 $11 22. Qxg5 f6) 22. Nxe6 $16 {[%emt 0:03:39] Chess con chili.} fxe6 {[%emt 0:00:06] [#]} 23. Na4 $1 {[%emt 0:06:34]} Qb7 {[%emt 0:07:59]} 24. Bc4 {[%emt 0:01:04]} Nd5 $2 {[%emt 0:00:09]} (24... Kh8 25. Bxe6 Rxf3) 25. Rhe1 $18 {[%emt 0:01:17] White is clearly winning.} Qc6 {[%emt 0:03:20]} 26. Bb2 {[%emt 0:00:21] This bishop pair is nice.} Rf6 {[%emt 0:01:43]} (26... Rf7 $142 27. Rxe6 Qxe6 28. Bxd5 Qg6+ 29. Be4 Qe6) 27. Bxd5 {[%emt 0:00:11] Weighted Error Value: White=0.12 (very precise) /Black=0.38} 1-0

[Event "SVK ECo-C Extraliga 2021-22"]
[Site "Slovakia"]
[Date "2022.05.07"]
[Round "7.5"]
[White "Straka, Jozef"]
[Black "Manik, Mikulas"]
[Result "0-1"]
[ECO "E61"]
[WhiteElo "2341"]
[BlackElo "2368"]
[Annotator "TA"]
[PlyCount "52"]
[EventDate "2021.10.21"]
[EventType "team-tourn"]
[EventCountry "SVK"]
[SourceTitle "playchess.com"]
[Source "ChessBase"]
[SourceQuality "1"]
[TimeControl "40/5400+30:1800+30"]

{[%evp 17,52,-16,-7,-27,0,-2,7,2,2,5,13,0,0,0,0,0,0,-14,-14,-18,-12,-33,-44,-40,-40,-46,-52,-30,-28,-123,-120,-572,-570,-560,-498,-483,-476]} 1. d4 {[%emt 0:00:03]} Nf6 {[%emt 0:00:02]} 2. c4 {[%emt 0:00:07]} g6 {[%emt 0:00:03]} 3. Nc3 {[%emt 0:00:07]} Bg7 {[%emt 0:00:02]} 4. Nf3 {[%emt 0:00:12]} O-O {[%emt 0:00:06]} 5. e3 {[%emt 0:00:04]} c5 {[%emt 0:02:02]} 6. Be2 {[%emt 0:00:53]} cxd4 {[%emt 0:06:17]} 7. Nxd4 {[%emt 0:04:43]} d5 {[%emt 0:01:21]} 8. O-O {[%emt 0:01:30]} dxc4 {[%emt 0:04:23]} 9. Bxc4 {[%emt 0:00:34]} Qc7 {[%emt 0:00:23]} 10. Be2 {[%emt 0:04:39] D94: Grünfeld: 4 Nf3 Bg7 5 e3.} Nc6 {[%emt 0:02:44]} 11. Nxc6 {[%emt 0:08:22]} bxc6 {[%emt 0:00:03] [#]} 12. Qc2 $146 {[%emt 0:09:40] The position is equal.} ({Predecessor:} 12. Bf3 Rd8 13. Qe2 Rb8 14. Qc4 Qa5 15. Rd1 Ba6 16. Rxd8+ Rxd8 17. Qxc6 Nd7 18. h3 {0-1 (48) Tomio,D (1882)-Ravagnani,T (1984) Cortina d'Ampezzo 2013}) 12... Rb8 {[%emt 0:05:03]} 13. e4 {[%emt 0:07:12]} Rd8 {[%emt 0:04:10]} 14. Rb1 {[%emt 0:02:58]} Ng4 {[%emt 0:05:44]} 15. Bxg4 {[%emt 0:05:58]} Bxg4 $40 {[%emt 0:00:03][%mdl 128] Black attacks.} 16. Be3 {[%emt 0:00:15]} Qa5 {[%emt 0:03:24]} 17. f3 {[%emt 0:31:21]} Be6 {[%emt 0:00:16]} 18. Rfd1 {[%emt 0:00:32]} h5 {[%emt 0:08:11]} 19. Rbc1 {[%emt 0:09:08]} Rxd1+ {[%emt 0:02:57]} 20. Rxd1 {[%emt 0:00:37]} Bxa2 {[%emt 0:01:45] [#] ...Bb3 is the strong threat.} 21. b4 $1 {[%emt 0:08:00]} Qa3 {[%emt 0:00:50]} 22. Qxa2 {[%emt 0:01:11]} Qxc3 {[%emt 0:00:21]} 23. Qxa7 {[%emt 0:00:05]} (23. Bc5 $11 {remains equal.}) 23... Rxb4 $17 {[%emt 0:07:31]} ({Not} 23... Qxb4 24. h3 $15) 24. Rc1 $2 {[%emt 0:03:23][%mdl 8192] [#]} (24. Kh1 $17) 24... Qxc1+ $1 $19 {[%emt 0:00:07][%mdl 512] Black is clearly winning.} 25. Bxc1 {[%emt 0:00:29]} Bd4+ {[%emt 0:00:05]} 26. Qxd4 {[%emt 0:00:03]} Rxd4 {[%emt 0:00:04] Weighted Error Value: White=0.56/Black=0.04 (flawless)} 0-1

[Event "SVK ECo-C Extraliga 2021-22"]
[Site "Slovakia"]
[Date "2022.05.08"]
[Round "7.5"]
[White "Dokaniev, Andrii"]
[Black "Macka, Oto"]
[Result "1-0"]
[ECO "B33"]
[WhiteElo "1667"]
[BlackElo "2026"]
[Annotator "TA"]
[PlyCount "78"]
[EventDate "2021.10.21"]
[EventType "team-tourn"]
[EventCountry "SVK"]
[SourceTitle "playchess.com"]
[Source "ChessBase"]
[SourceQuality "1"]
[TimeControl "40/5400+30:1800+30"]

{[%evp 20,78,123,113,172,95,129,120,152,113,100,107,132,107,132,128,130,112,130,101,87,61,131,20,60,23,76,76,80,76,76,76,72,72,84,49,96,90,159,154,173,143,143,138,138,138,206,222,250,239,276,283,286,279,329,292,371,359,345,179,307]} 1. e4 {[%emt 0:30:04]} c5 {[%emt 0:30:30]} 2. Nf3 {[%emt 0:00:13]} Nc6 {[%emt 0:00:00]} 3. d4 {[%emt 0:00:20]} cxd4 {[%emt 0:00:00]} 4. Nxd4 {[%emt 0:00:09]} e5 {[%emt 0:00:00]} 5. Nb5 {[%emt 0:04:54]} d6 {[%emt 0:00:00]} 6. N1c3 {[%emt 0:01:25]} a6 {[%emt 0:01:53]} 7. Na3 {[%emt 0:00:19]} Be7 {[%emt 0:00:08]} 8. Nc4 {[%emt 0:01:19]} Nf6 {[%emt 0:00:15]} 9. Bg5 {[%emt 0:04:42]} Be6 {[%emt 0:03:22]} 10. Bxf6 {[%emt 0:08:04]} gxf6 {[%emt 0:01:01]} 11. Ne3 {[%emt 0:01:54]} Qa5 {[%emt 0:04:44] B33: Sicilian: Pelikan and Sveshnikov Variations.} (11... h5 $16 {was necessary.}) 12. Qd2 {[%emt 0:02:25]} ({Better is} 12. Be2 $18) 12... Nd4 {[%emt 0:04:07] [#]} 13. Bd3 $146 {[%emt 0:06:53]} ({Predecessor:} 13. Ncd5 Qxd2+ 14. Kxd2 Rc8 15. c3 Nc6 16. Be2 Bd8 17. g3 Bxd5 18. Nxd5 O-O 19. Rhd1 {1-0 (61) Perestjuk,M (1918)-Barwich,A (1905) Berlin 2010}) 13... Rc8 {[%emt 0:01:41] White is better.} 14. Ncd5 {[%emt 0:03:26]} Qxd2+ {[%emt 0:00:55]} 15. Kxd2 {[%emt 0:03:48]} Rg8 {[%emt 0:01:13]} 16. Rhg1 {[%emt 0:06:24]} Rg6 {[%emt 0:00:33]} 17. c3 {[%emt 0:00:30]} Nc6 {[%emt 0:02:04]} 18. b4 {[%emt 0:00:30]} Bf8 {[%emt 0:00:30]} 19. g3 {[%emt 0:00:30]} Bh6 {[%emt 0:00:30]} 20. f4 {[%emt 0:00:42]} Bxd5 {[%emt 0:03:04]} (20... exf4 $1 $14 21. gxf4 Rxg1 22. Rxg1 Ne7) 21. Nxd5 {[%emt 0:01:14]} (21. exd5 $16 Ne7 22. Bxg6 hxg6 23. Rgf1) 21... Ne7 {[%emt 0:00:21]} 22. Kc2 {[%emt 0:03:52]} Nxd5 {[%emt 0:00:48]} (22... exf4 $11 {keeps the balance.} 23. gxf4 (23. Nxf4 Bxf4 24. gxf4 Rh6 $11) 23... Nxd5 24. exd5 Bxf4) 23. exd5 $16 {[%emt 0:00:13]} Rg7 {[%emt 0:00:44]} 24. fxe5 {[%emt 0:01:12]} fxe5 {[%emt 0:00:17]} 25. Rgf1 {[%emt 0:00:26]} Bg5 {[%emt 0:01:36]} 26. a4 {[%emt 0:05:49][%cal Ba2a4,Ba4a5][%mdl 32]} Bd8 {[%emt 0:01:36]} 27. Rf5 {[%emt 0:02:01]} Kf8 {[%emt 0:01:43]} (27... a5 $14) 28. Rh5 {[%emt 0:01:25]} Kg8 {[%emt 0:00:04]} (28... a5 $142) 29. a5 {[%emt 0:02:45]} Bc7 {[%emt 0:02:05]} 30. c4 {[%emt 0:01:06]} Bb8 {[%emt 0:01:07]} 31. Kb3 {[%emt 0:01:52] 0x0.001ad06f71c3dp-1022s more active pieces.} Ba7 {[%emt 0:00:47]} 32. Rf1 {[%emt 0:00:33]} Bd4 {[%emt 0:00:52]} (32... Kf8 $16 33. Bxh7 Ke7) 33. Rh6 {[%emt 0:01:11]} e4 {[%emt 0:01:45]} 34. Bxe4 {[%emt 0:00:30]} f6 {[%emt 0:00:10]} 35. Bf5 {[%emt 0:03:01]} Re8 {[%emt 0:05:30]} 36. Be6+ {[%emt 0:01:01]} Kh8 {[%emt 0:00:30]} 37. Rf5 {[%emt 0:01:14]} Ree7 {[%emt 0:00:30]} 38. Ka4 {[%emt 0:00:30]} Be5 {[%emt 0:00:30]} 39. c5 {[%emt 0:00:30]} (39. Rfh5 $142) 39... Rg6 {[%emt 0:00:30] Weighted Error Value: White=0.27 (precise) /Black=0.27 (precise)} (39... dxc5 $142 40. bxc5 Rg4+ 41. Ka3 Rd4) 1-0